[Event "Titled Tuesday Blitz November 14 Late 2023"]
[White "Goltsev, Dmitry"]
[Black "Pourkashiyan, Atousa"]
[WhiteFideId "24176710"]
[BlackFideId "12502014"]
[WhiteElo "2704"]
[BlackElo "2531"]
[Result "1-0"]
[Round "10"]
[TimeControl "180+1"]
[Date "2023.11.14"]
[WhiteClock "0:00:12"]
[BlackClock "0:00:05"]
[Board "39"]

1. e4 {[%clk 0:02:58]}  c5 {[%clk 0:02:59]} 2. Nf3 {[%clk 0:02:58]}  e6 {[%clk 0:02:58]} 3. d4 {[%clk 0:02:59]}  cxd4 {[%clk 0:02:59]} 4. Nxd4 {[%clk 0:03:00]}  a6 {[%clk 0:03:00]} 5. Nc3 {[%clk 0:03:00]}  Qc7 {[%clk 0:03:00]} 6. Be2 {[%clk 0:03:00]}  Nf6 {[%clk 0:03:00]} 7. O-O {[%clk 0:03:01]}  Bb4 {[%clk 0:02:58]} 8. Be3 {[%clk 0:03:01]}  Bxc3 {[%clk 0:02:55]} 9. bxc3 {[%clk 0:03:02]}  Nxe4 {[%clk 0:02:56]} 10. Bf3 {[%clk 0:03:01]}  Nxc3 {[%clk 0:02:55]} 11. Qd3 {[%clk 0:03:01]}  O-O {[%clk 0:02:44]} 12. Rfe1 {[%clk 0:02:57]}  d5 {[%clk 0:02:43]} 13. Nb3 {[%clk 0:02:47]}  Nd7 {[%clk 0:02:20]} 14. Bd4 {[%clk 0:02:43]}  Nb5 {[%clk 0:02:13]} 15. Bb2 {[%clk 0:02:43]}  Nc5 {[%clk 0:02:05]} 16. Nxc5 {[%clk 0:02:41]}  Qxc5 {[%clk 0:02:05]} 17. a4 {[%clk 0:02:40]}  Nd6 {[%clk 0:02:01]} 18. Re5 {[%clk 0:02:37]}  Nc4 {[%clk 0:01:54]} 19. Rh5 {[%clk 0:02:37]}  g6 {[%clk 0:01:43]} 20. Bd4 {[%clk 0:02:26]}  Qe7 {[%clk 0:01:29]} 21. Re1 {[%clk 0:01:39]}  gxh5 {[%clk 0:01:19]} 22. Be4 {[%clk 0:01:31]}  f5 {[%clk 0:00:57]} 23. Bxd5 {[%clk 0:01:23]}  Nd6 {[%clk 0:00:27]} 24. Qg3+ {[%clk 0:01:05]}  Kf7 {[%clk 0:00:26]} 25. Bc5 {[%clk 0:00:55]}  Ne4 {[%clk 0:00:25]} 26. Bxe4 {[%clk 0:00:12]}  Qxc5 {[%clk 0:00:25]} 27. Bf3 {[%clk 0:00:13]}  Qc3 {[%clk 0:00:23]} 28. Bxh5+ {[%clk 0:00:12]}  Ke7 {[%clk 0:00:22]} 29. Qxc3 {[%clk 0:00:13]}  Bd7 {[%clk 0:00:14]} 30. Qc5+ {[%clk 0:00:12]}  Kf6 {[%clk 0:00:13]} 31. Qd4+ {[%clk 0:00:11]}  Ke7 {[%clk 0:00:13]} 32. Qg7+ {[%clk 0:00:11]}  Kd8 {[%clk 0:00:05]} 33. Rd1 {[%clk 0:00:12]} 1-0


[Site "https://www.chess.com"]

[Event "Titled Tuesday Blitz November 14 Late 2023"]
[White "Adla, Diego"]
[Black "Pesotskiy, Mikhail"]
[WhiteFideId "100072"]
[BlackFideId "34164453"]
[WhiteElo "2648"]
[BlackElo "2513"]
[Result "1-0"]
[Round "10"]
[TimeControl "180+1"]
[Date "2023.11.14"]
[WhiteClock "0:00:54"]
[BlackClock "0:00:16"]
[Board "40"]

1. c4 {[%clk 0:02:50]}  e5 {[%clk 0:02:57]} 2. Nc3 {[%clk 0:02:50]}  Nc6 {[%clk 0:02:57]} 3. Nf3 {[%clk 0:02:50]}  Nf6 {[%clk 0:02:56]} 4. e4 {[%clk 0:02:50]}  Bb4 {[%clk 0:02:55]} 5. d3 {[%clk 0:02:50]}  O-O {[%clk 0:02:53]} 6. Be2 {[%clk 0:02:50]}  h6 {[%clk 0:02:51]} 7. O-O {[%clk 0:02:50]}  d6 {[%clk 0:02:51]} 8. Ne1 {[%clk 0:02:50]}  Nd4 {[%clk 0:02:48]} 9. Nc2 {[%clk 0:02:49]}  Bc5 {[%clk 0:02:38]} 10. Nxd4 {[%clk 0:02:48]}  Bxd4 {[%clk 0:02:37]} 11. Be3 {[%clk 0:02:47]}  c5 {[%clk 0:02:34]} 12. Qd2 {[%clk 0:02:42]}  Ng4 {[%clk 0:02:30]} 13. Bxg4 {[%clk 0:02:41]}  Bxg4 {[%clk 0:02:31]} 14. Kh1 {[%clk 0:02:41]}  f5 {[%clk 0:02:26]} 15. Nd5 {[%clk 0:02:36]}  f4 {[%clk 0:02:19]} 16. Bxd4 {[%clk 0:02:36]}  cxd4 {[%clk 0:02:20]} 17. f3 {[%clk 0:02:30]}  Be6 {[%clk 0:02:20]} 18. b4 {[%clk 0:02:27]}  a5 {[%clk 0:02:17]} 19. a3 {[%clk 0:02:26]}  Ra6 {[%clk 0:02:08]} 20. Rac1 {[%clk 0:02:22]}  axb4 {[%clk 0:01:45]} 21. axb4 {[%clk 0:02:22]}  Ra3 {[%clk 0:01:40]} 22. Ra1 {[%clk 0:02:13]}  Qa8 {[%clk 0:01:38]} 23. Qb2 {[%clk 0:02:11]}  Rxa1 {[%clk 0:01:33]} 24. Rxa1 {[%clk 0:02:12]}  Qb8 {[%clk 0:01:32]} 25. Kg1 {[%clk 0:02:02]}  b5 {[%clk 0:01:31]} 26. c5 {[%clk 0:02:01]}  dxc5 {[%clk 0:01:19]} 27. bxc5 {[%clk 0:02:02]}  Kh7 {[%clk 0:01:16]} 28. Nb6 {[%clk 0:01:57]}  Qe8 {[%clk 0:01:11]} 29. Ra5 {[%clk 0:01:52]}  Bd7 {[%clk 0:01:08]} 30. Nxd7 {[%clk 0:01:48]}  Qxd7 {[%clk 0:01:09]} 31. Qxb5 {[%clk 0:01:48]}  Qxb5 {[%clk 0:01:01]} 32. Rxb5 {[%clk 0:01:48]}  Ra8 {[%clk 0:01:01]} 33. c6 {[%clk 0:01:46]}  Ra1+ {[%clk 0:01:01]} 34. Kf2 {[%clk 0:01:46]}  Ra2+ {[%clk 0:00:59]} 35. Ke1 {[%clk 0:01:46]}  Rc2 {[%clk 0:00:59]} 36. Rxe5 {[%clk 0:01:44]}  Rxc6 {[%clk 0:00:59]} 37. Kd1 {[%clk 0:01:45]}  Ra6 {[%clk 0:00:59]} 38. Rd5 {[%clk 0:01:40]}  Ra2 {[%clk 0:00:55]} 39. Rxd4 {[%clk 0:01:40]}  Rxg2 {[%clk 0:00:55]} 40. e5 {[%clk 0:01:40]}  g5 {[%clk 0:00:44]} 41. Re4 {[%clk 0:01:33]}  Kg7 {[%clk 0:00:44]} 42. d4 {[%clk 0:01:32]}  Kf8 {[%clk 0:00:36]} 43. d5 {[%clk 0:01:33]}  Rxh2 {[%clk 0:00:31]} 44. d6 {[%clk 0:01:24]}  Ra2 {[%clk 0:00:32]} 45. e6 {[%clk 0:01:24]}  Ra7 {[%clk 0:00:20]} 46. Rc4 {[%clk 0:01:15]}  Ra6 {[%clk 0:00:18]} 47. Rc8+ {[%clk 0:01:02]}  Kg7 {[%clk 0:00:18]} 48. d7 {[%clk 0:01:01]}  Rd6+ {[%clk 0:00:16]} 49. Kc2 {[%clk 0:00:59]}  Kf6 {[%clk 0:00:17]} 50. d8=Q+ {[%clk 0:00:54]}  Rxd8 {[%clk 0:00:17]} 51. Rxd8 {[%clk 0:00:55]}  Kxe6 {[%clk 0:00:18]} 52. Rh8 {[%clk 0:00:55]}  Ke5 {[%clk 0:00:17]} 53. Rxh6 {[%clk 0:00:54]}  Kd4 {[%clk 0:00:16]} 54. Kd2 {[%clk 0:00:54]} 1-0


[Site "https://www.chess.com"]

[Event "Titled Tuesday Blitz November 14 Late 2023"]
[White "Ventura Bolet, Maxim"]
[Black "Maltsevskaya, Aleksandra"]
[WhiteFideId "22238824"]
[BlackFideId "24174041"]
[WhiteElo "2501"]
[BlackElo "2638"]
[Result "0-1"]
[Round "10"]
[TimeControl "180+1"]
[Date "2023.11.14"]
[WhiteClock "0:00:00"]
[BlackClock "0:00:07"]
[Board "41"]

1. Nf3 {[%clk 0:03:00]}  Nf6 {[%clk 0:02:47]} 2. g3 {[%clk 0:03:00]}  g6 {[%clk 0:02:48]} 3. Bg2 {[%clk 0:03:00]}  Bg7 {[%clk 0:02:47]} 4. O-O {[%clk 0:03:00]}  O-O {[%clk 0:02:48]} 5. d4 {[%clk 0:02:59]}  d6 {[%clk 0:02:49]} 6. c4 {[%clk 0:02:59]}  Nbd7 {[%clk 0:02:49]} 7. Nc3 {[%clk 0:02:59]}  e5 {[%clk 0:02:50]} 8. h3 {[%clk 0:02:58]}  exd4 {[%clk 0:02:51]} 9. Nxd4 {[%clk 0:02:58]}  Nc5 {[%clk 0:02:52]} 10. e4 {[%clk 0:02:58]}  Re8 {[%clk 0:02:52]} 11. Re1 {[%clk 0:02:59]}  Bd7 {[%clk 0:02:52]} 12. Rb1 {[%clk 0:02:54]}  a5 {[%clk 0:02:52]} 13. Kh2 {[%clk 0:02:47]}  h5 {[%clk 0:02:48]} 14. Bg5 {[%clk 0:02:45]}  Ng4+ {[%clk 0:02:48]} 15. hxg4 {[%clk 0:02:45]}  Qxg5 {[%clk 0:02:48]} 16. gxh5 {[%clk 0:02:42]}  Bg4 {[%clk 0:02:47]} 17. Bf3 {[%clk 0:02:09]}  Qxh5+ {[%clk 0:02:47]} 18. Kg1 {[%clk 0:02:01]}  Bxf3 {[%clk 0:02:43]} 19. Nxf3 {[%clk 0:01:57]}  Bxc3 {[%clk 0:02:38]} 20. bxc3 {[%clk 0:01:58]}  Nxe4 {[%clk 0:02:38]} 21. Rxb7 {[%clk 0:01:50]}  Nxc3 {[%clk 0:02:33]} 22. Rxe8+ {[%clk 0:01:45]}  Rxe8 {[%clk 0:02:34]} 23. Qd3 {[%clk 0:01:45]}  Ne2+ {[%clk 0:02:13]} 24. Kg2 {[%clk 0:01:29]}  Qg4 {[%clk 0:02:07]} 25. Qd2 {[%clk 0:01:14]}  Qxc4 {[%clk 0:01:40]} 26. Qxa5 {[%clk 0:01:09]}  Re7 {[%clk 0:00:04]} 27. Rb4 {[%clk 0:01:02]}  Qc6 {[%clk 0:00:04]} 28. Qg5 {[%clk 0:00:42]}  Re6 {[%clk 0:00:03]} 29. Rh4 {[%clk 0:00:21]}  Kf8 {[%clk 0:00:02]} 30. Rh8+ {[%clk 0:00:18]}  Kg7 {[%clk 0:00:02]} 31. Qh6+ {[%clk 0:00:19]}  Kf6 {[%clk 0:00:03]} 32. Qh4+ {[%clk 0:00:13]}  Kg7 {[%clk 0:00:03]} 33. Rh7+ {[%clk 0:00:12]}  Kg8 {[%clk 0:00:04]} 34. Rh8+ {[%clk 0:00:08]}  Kg7 {[%clk 0:00:04]} 35. Qh6+ {[%clk 0:00:06]}  Kf6 {[%clk 0:00:04]} 36. Rh7 {[%clk 0:00:03]}  Ke7 {[%clk 0:00:03]} 37. Qxg6 {[%clk 0:00:02]}  Rxg6 {[%clk 0:00:02]} 38. Rh4 {[%clk 0:00:02]}  Nxg3 {[%clk 0:00:02]} 39. fxg3 {[%clk 0:00:03]}  Qc2+ {[%clk 0:00:03]} 40. Kh3 {[%clk 0:00:03]}  Re6 {[%clk 0:00:04]} 41. Rf4 {[%clk 0:00:02]}  Qh7+ {[%clk 0:00:04]} 42. Kg2 {[%clk 0:00:02]}  Qd3 {[%clk 0:00:05]} 43. Ng5 {[%clk 0:00:02]}  Re2+ {[%clk 0:00:05]} 44. Kh3 {[%clk 0:00:03]}  f6 {[%clk 0:00:05]} 45. Nf3 {[%clk 0:00:02]}  Qh7+ {[%clk 0:00:06]} 46. Nh4 {[%clk 0:00:01]}  Re5 {[%clk 0:00:06]} 47. Rg4 {[%clk 0:00:00]}  Re4 {[%clk 0:00:07]} 0-1


[Site "https://www.chess.com"]

[Event "Titled Tuesday Blitz November 14 Late 2023"]
[White "Kochiev, Ivan"]
[Black "Adewumi, Tanitoluwa"]
[WhiteFideId "2917890"]
[BlackFideId "30966396"]
[WhiteElo "2500"]
[BlackElo "2619"]
[Result "0-1"]
[Round "10"]
[TimeControl "180+1"]
[Date "2023.11.14"]
[WhiteClock "0:00:02"]
[BlackClock "0:00:52"]
[Board "42"]

1. e4 {[%clk 0:03:00]}  c5 {[%clk 0:02:59]} 2. Nf3 {[%clk 0:03:00]}  Nc6 {[%clk 0:02:58]} 3. d4 {[%clk 0:03:01]}  cxd4 {[%clk 0:02:55]} 4. Nxd4 {[%clk 0:03:02]}  e6 {[%clk 0:02:54]} 5. Nc3 {[%clk 0:03:02]}  Qc7 {[%clk 0:02:50]} 6. f4 {[%clk 0:02:55]}  a6 {[%clk 0:02:45]} 7. Nxc6 {[%clk 0:02:53]}  Qxc6 {[%clk 0:02:45]} 8. Be3 {[%clk 0:02:54]}  b5 {[%clk 0:02:45]} 9. Bd3 {[%clk 0:02:53]}  Bc5 {[%clk 0:02:44]} 10. Qf3 {[%clk 0:02:51]}  Bb7 {[%clk 0:02:44]} 11. O-O-O {[%clk 0:02:46]}  Nf6 {[%clk 0:02:41]} 12. Rhe1 {[%clk 0:02:17]}  Rc8 {[%clk 0:02:32]} 13. Bxc5 {[%clk 0:01:33]}  Qxc5 {[%clk 0:02:25]} 14. a3 {[%clk 0:01:30]}  b4 {[%clk 0:02:17]} 15. axb4 {[%clk 0:01:27]}  Qxb4 {[%clk 0:02:18]} 16. f5 {[%clk 0:01:12]}  O-O {[%clk 0:02:07]} 17. Qg3 {[%clk 0:01:11]}  exf5 {[%clk 0:01:48]} 18. exf5 {[%clk 0:01:00]}  d5 {[%clk 0:01:36]} 19. Nb1 {[%clk 0:00:51]}  Rc5 {[%clk 0:01:22]} 20. Rf1 {[%clk 0:00:11]}  Rfc8 {[%clk 0:01:17]} 21. Qf4 {[%clk 0:00:10]}  Qb6 {[%clk 0:01:09]} 22. g4 {[%clk 0:00:10]}  d4 {[%clk 0:01:01]} 23. Nd2 {[%clk 0:00:07]}  Nd5 {[%clk 0:00:59]} 24. Qf3 {[%clk 0:00:02]}  Ne3 {[%clk 0:00:52]} 0-1


[Site "https://www.chess.com"]

[Event "Titled Tuesday Blitz November 14 Late 2023"]
[White "Hajiyev, Kanan"]
[Black "Flameboard08"]
[WhiteFideId "13404148"]
[WhiteElo "2497"]
[BlackElo "2617"]
[Result "0-1"]
[Round "10"]
[TimeControl "180+1"]
[Date "2023.11.14"]
[WhiteClock "0:00:06"]
[BlackClock "0:00:28"]
[Board "43"]

1. d4 {[%clk 0:03:00]}  b6 {[%clk 0:03:00]} 2. Nf3 {[%clk 0:03:00]}  Bb7 {[%clk 0:03:00]} 3. g3 {[%clk 0:03:00]}  e6 {[%clk 0:03:01]} 4. Bg2 {[%clk 0:03:01]}  Nf6 {[%clk 0:03:01]} 5. Nh4 {[%clk 0:03:01]}  d5 {[%clk 0:03:00]} 6. c4 {[%clk 0:03:01]}  Be7 {[%clk 0:03:00]} 7. cxd5 {[%clk 0:03:01]}  Bxd5 {[%clk 0:02:59]} 8. Nf3 {[%clk 0:02:59]}  c5 {[%clk 0:02:59]} 9. Nc3 {[%clk 0:02:59]}  Nc6 {[%clk 0:02:58]} 10. Nxd5 {[%clk 0:02:59]}  exd5 {[%clk 0:02:59]} 11. O-O {[%clk 0:02:59]}  O-O {[%clk 0:02:58]} 12. Bg5 {[%clk 0:02:57]}  Ne4 {[%clk 0:02:55]} 13. Bxe7 {[%clk 0:02:58]}  Nxe7 {[%clk 0:02:53]} 14. dxc5 {[%clk 0:02:56]}  bxc5 {[%clk 0:02:53]} 15. Rc1 {[%clk 0:02:53]}  Qb6 {[%clk 0:02:50]} 16. Qc2 {[%clk 0:02:50]}  Rac8 {[%clk 0:02:44]} 17. e3 {[%clk 0:02:44]}  a5 {[%clk 0:02:43]} 18. Nd2 {[%clk 0:02:44]}  Nf6 {[%clk 0:02:43]} 19. Rfd1 {[%clk 0:02:40]}  a4 {[%clk 0:02:41]} 20. Nf3 {[%clk 0:02:40]}  Rc7 {[%clk 0:02:34]} 21. Ne5 {[%clk 0:02:34]}  Rb8 {[%clk 0:02:32]} 22. Rd2 {[%clk 0:02:32]}  Qb4 {[%clk 0:02:23]} 23. Nd3 {[%clk 0:02:29]}  Qb5 {[%clk 0:02:04]} 24. Nf4 {[%clk 0:02:24]}  c4 {[%clk 0:02:01]} 25. Ne2 {[%clk 0:02:19]}  a3 {[%clk 0:01:55]} 26. b3 {[%clk 0:02:11]}  Rcc8 {[%clk 0:01:49]} 27. Nd4 {[%clk 0:01:56]}  Qa5 {[%clk 0:01:45]} 28. bxc4 {[%clk 0:01:46]}  Rb2 {[%clk 0:01:43]} 29. Nb3 {[%clk 0:01:15]}  Rxc2 {[%clk 0:01:43]} 30. Rdxc2 {[%clk 0:01:09]}  Qb4 {[%clk 0:01:28]} 31. c5 {[%clk 0:01:07]}  Nc6 {[%clk 0:01:26]} 32. Rd1 {[%clk 0:01:01]}  h5 {[%clk 0:01:23]} 33. h3 {[%clk 0:01:00]}  g6 {[%clk 0:01:13]} 34. Kh2 {[%clk 0:00:59]}  h4 {[%clk 0:01:08]} 35. g4 {[%clk 0:00:59]}  Qb8+ {[%clk 0:01:08]} 36. Kg1 {[%clk 0:00:58]}  Nb4 {[%clk 0:01:09]} 37. Rcd2 {[%clk 0:00:58]}  Nxa2 {[%clk 0:01:09]} 38. Nd4 {[%clk 0:00:49]}  Nc3 {[%clk 0:01:07]} 39. Ra1 {[%clk 0:00:46]}  Rxc5 {[%clk 0:01:06]} 40. Rxa3 {[%clk 0:00:44]}  Kg7 {[%clk 0:00:52]} 41. Rb3 {[%clk 0:00:43]}  Qa7 {[%clk 0:00:46]} 42. Rc2 {[%clk 0:00:43]}  Nce4 {[%clk 0:00:36]} 43. g5 {[%clk 0:00:23]}  Nd7 {[%clk 0:00:29]} 44. Bxe4 {[%clk 0:00:18]}  dxe4 {[%clk 0:00:30]} 45. Rbc3 {[%clk 0:00:07]}  Rxc3 {[%clk 0:00:28]} 46. Rxc3 {[%clk 0:00:06]}  Qa1+ {[%clk 0:00:28]} 0-1


[Site "https://www.chess.com"]

[Event "Titled Tuesday Blitz November 14 Late 2023"]
[White "Lymar, Vladislav"]
[Black "ATM622"]
[WhiteFideId "14162180"]
[WhiteElo "2577"]
[BlackElo "2454"]
[Result "1-0"]
[Round "10"]
[TimeControl "180+1"]
[Date "2023.11.14"]
[WhiteClock "0:01:07"]
[BlackClock "0:00:01"]
[Board "45"]

1. e4 {[%clk 0:03:00]}  c6 {[%clk 0:02:37]} 2. d3 {[%clk 0:02:55]}  d5 {[%clk 0:02:38]} 3. Nf3 {[%clk 0:02:55]}  dxe4 {[%clk 0:02:38]} 4. dxe4 {[%clk 0:02:56]}  Qxd1+ {[%clk 0:02:39]} 5. Kxd1 {[%clk 0:02:57]}  Nf6 {[%clk 0:02:39]} 6. Nc3 {[%clk 0:02:53]}  Bg4 {[%clk 0:02:38]} 7. Be2 {[%clk 0:02:52]}  Nbd7 {[%clk 0:02:38]} 8. Nd2 {[%clk 0:02:52]}  Bxe2+ {[%clk 0:02:38]} 9. Kxe2 {[%clk 0:02:52]}  O-O-O {[%clk 0:02:39]} 10. a4 {[%clk 0:02:52]}  e5 {[%clk 0:02:33]} 11. Nc4 {[%clk 0:02:48]}  Ne8 {[%clk 0:02:24]} 12. Be3 {[%clk 0:02:45]}  b6 {[%clk 0:02:20]} 13. a5 {[%clk 0:02:45]}  Kb7 {[%clk 0:02:20]} 14. Rhd1 {[%clk 0:02:39]}  Be7 {[%clk 0:02:14]} 15. Rxd7+ {[%clk 0:02:32]}  Rxd7 {[%clk 0:02:10]} 16. Nxe5 {[%clk 0:02:33]}  Rc7 {[%clk 0:02:06]} 17. axb6 {[%clk 0:02:31]}  axb6 {[%clk 0:02:06]} 18. Nxf7 {[%clk 0:02:30]}  Rf8 {[%clk 0:02:03]} 19. Ne5 {[%clk 0:02:30]}  Nd6 {[%clk 0:01:57]} 20. f3 {[%clk 0:02:26]}  Bf6 {[%clk 0:01:55]} 21. Bf4 {[%clk 0:02:15]}  Re7 {[%clk 0:01:54]} 22. Ng6 {[%clk 0:02:10]}  Bxc3 {[%clk 0:01:12]} 23. Bxd6 {[%clk 0:01:48]}  hxg6 {[%clk 0:01:02]} 24. bxc3 {[%clk 0:01:47]}  Rff7 {[%clk 0:00:50]} 25. Bxe7 {[%clk 0:01:46]}  Rxe7 {[%clk 0:00:51]} 26. Rd1 {[%clk 0:01:46]}  Kc7 {[%clk 0:00:50]} 27. Ke3 {[%clk 0:01:44]}  g5 {[%clk 0:00:50]} 28. g3 {[%clk 0:01:44]}  Re5 {[%clk 0:00:50]} 29. f4 {[%clk 0:01:44]}  Rc5 {[%clk 0:00:50]} 30. Rd3 {[%clk 0:01:42]}  g4 {[%clk 0:00:48]} 31. e5 {[%clk 0:01:41]}  Ra5 {[%clk 0:00:35]} 32. Rd6 {[%clk 0:01:41]}  g5 {[%clk 0:00:35]} 33. Rg6 {[%clk 0:01:37]}  gxf4+ {[%clk 0:00:32]} 34. gxf4 {[%clk 0:01:38]}  Rc5 {[%clk 0:00:32]} 35. Rg7+ {[%clk 0:01:34]}  Kd8 {[%clk 0:00:33]} 36. e6 {[%clk 0:01:33]}  Rxc3+ {[%clk 0:00:32]} 37. Kd4 {[%clk 0:01:31]}  Rxc2 {[%clk 0:00:31]} 38. f5 {[%clk 0:01:28]}  Re2 {[%clk 0:00:23]} 39. Rxg4 {[%clk 0:01:19]}  Ke7 {[%clk 0:00:19]} 40. Rg7+ {[%clk 0:01:19]}  Ke8 {[%clk 0:00:18]} 41. h4 {[%clk 0:01:18]}  Kf8 {[%clk 0:00:09]} 42. Rc7 {[%clk 0:01:16]}  c5+ {[%clk 0:00:05]} 43. Kd5 {[%clk 0:01:15]}  Re1 {[%clk 0:00:02]} 44. f6 {[%clk 0:01:08]}  Kg8 {[%clk 0:00:01]} 45. Rc8+ {[%clk 0:01:06]}  Kh7 {[%clk 0:00:01]} 46. f7 {[%clk 0:01:07]}  Kg7 {[%clk 0:00:01]} 47. f8=Q+ {[%clk 0:01:07]} 1-0


[Site "https://www.chess.com"]

[Event "Titled Tuesday Blitz November 14 Late 2023"]
[White "Kubicka, Anna"]
[Black "angelgab3"]
[WhiteFideId "1152254"]
[WhiteElo "2482"]
[BlackElo "2572"]
[Result "1-0"]
[Round "10"]
[TimeControl "180+1"]
[Date "2023.11.14"]
[WhiteClock "0:02:21"]
[BlackClock "0:01:50"]
[Board "46"]

1. e4 {[%clk 0:03:00]}  c5 {[%clk 0:03:00]} 2. Ne2 {[%clk 0:02:59]}  Nc6 {[%clk 0:02:58]} 3. g3 {[%clk 0:02:59]}  g6 {[%clk 0:02:58]} 4. Bg2 {[%clk 0:03:00]}  Bg7 {[%clk 0:02:59]} 5. O-O {[%clk 0:03:00]}  e5 {[%clk 0:02:57]} 6. Nbc3 {[%clk 0:02:59]}  Nge7 {[%clk 0:02:57]} 7. Nd5 {[%clk 0:02:59]}  d6 {[%clk 0:02:51]} 8. c3 {[%clk 0:02:54]}  O-O {[%clk 0:02:51]} 9. d3 {[%clk 0:02:50]}  h6 {[%clk 0:02:31]} 10. Be3 {[%clk 0:02:48]}  Rb8 {[%clk 0:02:27]} 11. Qd2 {[%clk 0:02:47]}  Kh7 {[%clk 0:02:26]} 12. f4 {[%clk 0:02:44]}  Nxd5 {[%clk 0:02:24]} 13. exd5 {[%clk 0:02:44]}  Ne7 {[%clk 0:02:24]} 14. fxe5 {[%clk 0:02:39]}  b6 {[%clk 0:02:14]} 15. exd6 {[%clk 0:02:37]}  Nf5 {[%clk 0:02:13]} 16. Bf4 {[%clk 0:02:32]}  g5 {[%clk 0:02:12]} 17. d7 {[%clk 0:02:25]}  gxf4 {[%clk 0:01:56]} 18. dxc8=Q {[%clk 0:02:25]}  Rxc8 {[%clk 0:01:50]} 19. Be4 {[%clk 0:02:21]} 1-0


[Site "https://www.chess.com"]

[Event "Titled Tuesday Blitz November 14 Late 2023"]
[White "Kostiukov, Alexandr"]
[Black "Shapiro, Viktor"]
[WhiteFideId "14108100"]
[BlackFideId "4175700"]
[WhiteElo "2454"]
[BlackElo "2558"]
[Result "0-1"]
[Round "10"]
[TimeControl "180+1"]
[Date "2023.11.14"]
[WhiteClock "0:00:37"]
[BlackClock "0:01:53"]
[Board "47"]

1. e4 {[%clk 0:03:00]}  Nf6 {[%clk 0:02:59]} 2. e5 {[%clk 0:03:00]}  Nd5 {[%clk 0:03:00]} 3. c4 {[%clk 0:03:00]}  Nb6 {[%clk 0:03:00]} 4. d4 {[%clk 0:03:01]}  d6 {[%clk 0:03:00]} 5. f4 {[%clk 0:03:02]}  dxe5 {[%clk 0:03:00]} 6. fxe5 {[%clk 0:03:03]}  c5 {[%clk 0:03:01]} 7. d5 {[%clk 0:03:03]}  g6 {[%clk 0:03:01]} 8. Nc3 {[%clk 0:03:00]}  Bg7 {[%clk 0:03:01]} 9. Bf4 {[%clk 0:03:00]}  O-O {[%clk 0:03:01]} 10. Qd2 {[%clk 0:03:00]}  e6 {[%clk 0:03:00]} 11. Nf3 {[%clk 0:02:52]}  exd5 {[%clk 0:03:00]} 12. cxd5 {[%clk 0:02:53]}  Bg4 {[%clk 0:02:59]} 13. O-O-O {[%clk 0:02:43]}  c4 {[%clk 0:02:55]} 14. Be2 {[%clk 0:02:09]}  Na6 {[%clk 0:02:54]} 15. h3 {[%clk 0:02:05]}  Bf5 {[%clk 0:02:53]} 16. g4 {[%clk 0:02:03]}  Bd3 {[%clk 0:02:53]} 17. Bxd3 {[%clk 0:02:03]}  cxd3 {[%clk 0:02:52]} 18. Qxd3 {[%clk 0:02:03]}  Rc8 {[%clk 0:02:49]} 19. Kb1 {[%clk 0:02:01]}  Nc4 {[%clk 0:02:47]} 20. Rc1 {[%clk 0:01:55]}  Qb6 {[%clk 0:02:45]} 21. Rh2 {[%clk 0:01:52]}  Nb4 {[%clk 0:02:40]} 22. Qe4 {[%clk 0:01:46]}  Qa6 {[%clk 0:02:27]} 23. a3 {[%clk 0:01:36]}  Nd3 {[%clk 0:02:27]} 24. Rcc2 {[%clk 0:01:21]}  Ncxb2 {[%clk 0:02:18]} 25. Rxb2 {[%clk 0:01:16]}  Rxc3 {[%clk 0:02:17]} 26. Ra2 {[%clk 0:00:55]}  Qb5+ {[%clk 0:02:08]} 27. Ka1 {[%clk 0:00:49]}  Rfc8 {[%clk 0:02:06]} 28. Rh1 {[%clk 0:00:47]}  R8c4 {[%clk 0:01:59]} 29. Qe3 {[%clk 0:00:43]}  Nxf4 {[%clk 0:01:58]} 30. Qxa7 {[%clk 0:00:41]}  Rxf3 {[%clk 0:01:53]} 31. Qb8+ {[%clk 0:00:37]}  Bf8 {[%clk 0:01:53]} 0-1


[Site "https://www.chess.com"]

[Event "Titled Tuesday Blitz November 14 Late 2023"]
[White "Arnold, Ken"]
[Black "JackRodgers"]
[WhiteFideId "2056836"]
[WhiteElo "2430"]
[BlackElo "2538"]
[Result "0-1"]
[Round "10"]
[TimeControl "180+1"]
[Date "2023.11.14"]
[WhiteClock "0:00:06"]
[BlackClock "0:00:31"]
[Board "48"]

1. e4 {[%clk 0:03:00]}  c5 {[%clk 0:02:57]} 2. Nf3 {[%clk 0:03:01]}  g6 {[%clk 0:02:56]} 3. Bc4 {[%clk 0:03:00]}  Bg7 {[%clk 0:02:56]} 4. Nc3 {[%clk 0:03:00]}  e6 {[%clk 0:02:54]} 5. O-O {[%clk 0:02:58]}  Ne7 {[%clk 0:02:52]} 6. Re1 {[%clk 0:02:59]}  O-O {[%clk 0:02:51]} 7. d4 {[%clk 0:02:50]}  d5 {[%clk 0:02:49]} 8. exd5 {[%clk 0:02:50]}  exd5 {[%clk 0:02:48]} 9. Be2 {[%clk 0:02:45]}  cxd4 {[%clk 0:02:45]} 10. Nxd4 {[%clk 0:02:44]}  Nbc6 {[%clk 0:02:46]} 11. Be3 {[%clk 0:02:41]}  Nf5 {[%clk 0:02:37]} 12. Nxf5 {[%clk 0:02:40]}  Bxf5 {[%clk 0:02:38]} 13. Nxd5 {[%clk 0:02:32]}  Bxc2 {[%clk 0:02:18]} 14. Qxc2 {[%clk 0:02:25]}  Qxd5 {[%clk 0:02:18]} 15. Bf3 {[%clk 0:02:23]}  Qb5 {[%clk 0:02:17]} 16. Bxc6 {[%clk 0:02:20]}  bxc6 {[%clk 0:02:18]} 17. Rab1 {[%clk 0:02:15]}  a5 {[%clk 0:02:17]} 18. Rec1 {[%clk 0:02:13]}  Rfc8 {[%clk 0:02:17]} 19. a4 {[%clk 0:02:06]}  Qd5 {[%clk 0:02:02]} 20. Rd1 {[%clk 0:02:01]}  Qe6 {[%clk 0:02:01]} 21. Bc5 {[%clk 0:01:58]}  h5 {[%clk 0:01:57]} 22. Rd6 {[%clk 0:01:53]}  Qg4 {[%clk 0:01:55]} 23. h3 {[%clk 0:01:50]}  Qf4 {[%clk 0:01:54]} 24. Rbd1 {[%clk 0:01:40]}  Be5 {[%clk 0:01:52]} 25. g3 {[%clk 0:01:39]}  Qh6 {[%clk 0:01:31]} 26. Rd7 {[%clk 0:01:31]}  h4 {[%clk 0:01:27]} 27. Qc4 {[%clk 0:01:20]}  hxg3 {[%clk 0:01:12]} 28. Rxf7 {[%clk 0:01:10]}  gxf2+ {[%clk 0:00:56]} 29. Rxf2+ {[%clk 0:01:10]}  Kh8 {[%clk 0:00:57]} 30. Re1 {[%clk 0:00:26]}  Bg7 {[%clk 0:00:39]} 31. Qg4 {[%clk 0:00:21]}  Re8 {[%clk 0:00:35]} 32. Rfe2 {[%clk 0:00:20]}  Rxe2 {[%clk 0:00:33]} 33. Rxe2 {[%clk 0:00:06]}  Qc1+ {[%clk 0:00:31]} 0-1


[Site "https://www.chess.com"]

[Event "Titled Tuesday Blitz November 14 Late 2023"]
[White "Statham_l3"]
[Black "Szente Varga, Fruzsina"]
[BlackFideId "712264"]
[WhiteElo "2538"]
[BlackElo "2370"]
[Result "1-0"]
[Round "10"]
[TimeControl "180+1"]
[Date "2023.11.14"]
[WhiteClock "0:00:36"]
[BlackClock "0:01:39"]
[Board "49"]

1. e4 {[%clk 0:03:00]}  c5 {[%clk 0:02:59]} 2. Nf3 {[%clk 0:03:00]}  Nc6 {[%clk 0:02:59]} 3. b4 {[%clk 0:02:59]}  Nxb4 {[%clk 0:02:54]} 4. c3 {[%clk 0:02:59]}  Nc6 {[%clk 0:02:54]} 5. d4 {[%clk 0:03:00]}  cxd4 {[%clk 0:02:54]} 6. cxd4 {[%clk 0:03:01]}  d5 {[%clk 0:02:55]} 7. exd5 {[%clk 0:03:02]}  Qxd5 {[%clk 0:02:55]} 8. Nc3 {[%clk 0:03:03]}  Qd6 {[%clk 0:02:43]} 9. Nb5 {[%clk 0:02:49]}  Qd8 {[%clk 0:02:29]} 10. d5 {[%clk 0:02:24]}  Nb8 {[%clk 0:01:50]} 11. Bf4 {[%clk 0:01:21]}  Na6 {[%clk 0:01:49]} 12. Qe2 {[%clk 0:00:44]}  Bg4 {[%clk 0:01:47]} 13. Nd6+ {[%clk 0:00:39]}  Kd7 {[%clk 0:01:42]} 14. Qb5+ {[%clk 0:00:36]}  Kc7 {[%clk 0:01:39]} 15. Qxb7# {[%clk 0:00:36]} 1-0


[Site "https://www.chess.com"]